Cogmind - Beta 14 @@@ ROGUE MODE // 2024.08.14 @ 18:02:39 Player: Spoodle Result: Destroyed by D-53 Grenadier with Mini Grenade Launcher Performance ------------- Evolutions (0) 0 Regions Visited (2) 400 Robots Destroyed (38) 190 Value Destroyed (581) 581 Prototype IDs (0) 0 Alien Tech Used (0) 0 Bonus (-198) -198 TOTAL SCORE: 973 Bonus ------- Follower Combat Kills 7 Friendly Fire -205 Cogmind --------- Core Integrity 0/250 Matter 203/300 Energy 114/265 System Corruption 3% Temperature Cool (0) Movement Treading (320) Ox2 Location -10/Mines Parts ------- > --- POWER (1) -------- Improved Ion Engine > --- PROPULSION (2) --- Light Treads > --- UTILITY (2) ------ High-capacity Storage Unit > --- WEAPON (2) ------- Shotgun Shotgun > --- INVENTORY (20) --- Improved Ion Engine Light Treads Light Treads Light Treads Light Treads Makeshift Leg Makeshift Leg Wheel Improved Heat Sink Seismic Detector Beamcaster Shotgun Light Cannon Datajack Plasma Cutter Ripper Peak State ------------ > --- POWER ------------ Improved Ion Engine > --- PROPULSION ------- Light Treads Light Treads > --- UTILITY ---------- High-capacity Storage Unit Light Armor Plating > --- WEAPON ----------- Shotgun Shotgun > --- INVENTORY -------- Improved Ion Engine Improved Ion Engine Improved Ion Engine Light Treads Light Treads Light Treads Light Treads Light Treads Wheel Improved Heat Sink Seismic Detector Beam Cannon Assault Rifle Shotgun Shotgun Light Cannon Grenade Launcher Datajack Plasma Cutter Ripper [Rating: 13] Favorites ----------- Power Improved Ion Engine Engine Improved Ion Engine Propulsion Light Treads Treads Light Treads Leg Aluminum Leg Wheel Wheel Utility High-capacity Storage Unit Device Seismic Detector Storage High-capacity Storage Unit Protection Light Armor Plating Weapon Shotgun Energy Cannon Beam Cannon Ballistic Gun Shotgun Launcher Grenade Launcher Special Weapon Mining Laser Build | -11 -10 -10 ------- Run | Yrd Mat Min Slots Evolved . | . . . Power . | . . . Propulsion . | . . . Utility . | . . . Weapon . | . . . Parts Attached 38 | 7 17 14 Power 4 | 1 1 2 Engine 4 | 1 1 2 Core . | . . . Reactor . | . . . Propulsion 10 | 2 3 5 Treads 6 | . 3 3 Leg 2 | 2 . . Wheel 2 | . . 2 Hover . | . . . Flight . | . . . Utility 9 | 2 4 3 Device 3 | 1 1 1 Storage 2 | 1 1 . Processor . | . . . Hackware . | . . . Protection 4 | . 2 2 Artifact . | . . . Weapon 15 | 2 9 4 Energy Gun . | . . . Energy Cannon 2 | . 1 1 Ballistic Gun 8 | 2 4 2 Ballistic Cannon . | . . . Launcher 2 | . 1 1 Special Weapon 3 | . 3 . Impact Weapon . | . . . Slashing Weapon . | . . . Piercing Weapon . | . . . Special Melee Weapon . | . . . Unidentified Prototypes . | . . . Parts Lost 7 | . . 7 Power 1 | . . 1 Propulsion 2 | . . 2 Utility 2 | . . 2 Weapon 2 | . . 2 Highest Loss Streak 6 | . . 6 To Critical Strikes . | . . . Average Slot Usage (%) 99 | . 100 98 Engine 13 | . 14 13 Treads 25 | . 25 25 Leg 1 | . 2 . Device 3 | . 4 1 Storage 14 | . 14 14 Protection 10 | . 9 11 Energy Cannon 3 | . 3 3 Ballistic Gun 21 | . 23 16 Launcher 2 | . . 7 Peak Build Rating 13 | 7 12 13 Average Rating 10 | 5 10 12 On Entrance 6 | . 7 12 Naked Turns . | . . . Heaviest Build 56 | 13 56 56 Greatest Support 40 | 20 40 40 Greatest Overweight (x) 5 | 1 1 5 Average Overweight (x) 1 | . . 1 Largest Inventory Capacity 20 | 8 20 20 Average Capacity 17 | 7 17 20 Most Carried 20 | 7 20 20 Average Carried 16 | 4 15 19 Final Capacity 20 | 8 20 20 Final Carried 20 | 7 20 16 Class Distribution -------------------- 100% | Mutant Dominant Class ---------------- Mutant | -10/Materials Mutant | -10/Mines Resources | -11 -10 -10 ----------- Run | Yrd Mat Min Matter Collected 912 | 284 449 179 Remotely . | . . . Salvage Created 1074 | 109 673 292 Parts 79 | 15 43 21 Haulers Intercepted 1 | . 1 . Recyclers Shooed 3 | . 3 . Parts Field Recycled . | . . . Retrieved Matter . | . . . Parts Self-Destructed . | . . . Prevented . | . . . Kills | -11 -10 -10 ------- Run | Yrd Mat Min Combat Hostiles Destroyed 34 | . 17 17 Guns 14 | . 12 2 Cannons 2 | . 2 . AOE 18 | . 3 15 Classes Destroyed 10 | 2 4 4 Worker 1 | . . 1 Builder 2 | . . 2 Tunneler 4 | 3 1 . Hauler 1 | . 1 . Recycler 3 | 1 2 . Watcher 1 | . 1 . Swarmer 14 | . 9 5 Grunt 11 | . 8 3 Zionite 1 | . . 1 Assembled 10 | . . 10 Best Kill Streak 10 | 4 3 10 Combat Bots Only 10 | . 3 10 Max Kills in Single Turn 5 | 1 2 5 Gunslinging . | . . . Exploded 4 | . 2 4 Melee . | . . . Uniques/NPCs Destroyed . | . . . Combat | -11 -10 -10 -------- Run | Yrd Mat Min Hostile Shots Fired 154 | . 108 46 Missed 45 | . 33 12 Damage Taken 1711 | . 737 974 Core 262 | . 105 157 Absorbed by Shields . | . . . Core Remaining (%) 100 | 100 . . Volleys Fired 102 | 7 77 18 Largest 2 | 2 2 2 Hottest 100 | 40 100 60 Shots Fired 171 | 14 130 27 Gun 136 | 14 104 18 Cannon 23 | . 21 2 Launcher 9 | . 2 7 Special 3 | . 3 . Kinetic 136 | 14 104 18 Thermal 26 | . 24 2 Explosive 9 | . 2 7 Electromagnetic . | . . . Robot Hit Streak 6 | 4 6 5 Robot Miss Streak 5 | 2 5 5 Penetration Max . | . . . Secondary Targets 2 | . 2 . Max Gunslinging Chain 1 | . 1 . Shots Hit Robots 102 | 8 79 15 Core Hits 75 | 6 37 32 Critical Kills . | . . . Critical Parts Destroyed . | . . . Critical Strikes 1 | . . 1 Destroy 1 | . . 1 Melee Attacks . | . . . Impact . | . . . Slashing . | . . . Piercing . | . . . Sneak Attacks . | . . . Combat Hostiles . | . . . Follow-up Attacks . | . . . Damage Inflicted 2475 | 80 1252 1143 Guns 1084 | 80 797 207 Cannons 262 | . 227 35 Explosions 1037 | . 167 870 Melee . | . . . Ramming 92 | . 61 31 Kinetic 1084 | 80 797 207 Thermal 262 | . 227 35 Explosive 1037 | . 167 870 Electromagnetic . | . . . Impact . | . . . Slashing . | . . . Piercing . | . . . Highest Corruption 3 | . 3 3 Average Corruption 2 | . 2 3 Corruption Purged . | . . . Corruption Blocked . | . . . Effects 45 | . 24 21 Message Errors 9 | . 5 4 Matter Fused 9 | . 6 3 Heat Flow Errors 6 | . 3 3 Energy Discharges 5 | . 1 4 Data Loss (minor) 7 | . 5 2 Data Loss (major) 5 | . 2 3 Misfires 1 | . 1 . Alerts 2 | . . 2 Weapon Failures 1 | . 1 . Overload Shots . | . . . Overflow Damage 22 | . 10 12 Projectiles . | . . . Explosions 22 | . 10 12 Melee . | . . . Knockbacks . | . . . Impact . | . . . Kinetic . | . . . Secondary . | . . . Self-Inflicted Damage 126 | . 51 75 Shots 5 | . 2 3 Rammed 17 | . 13 4 Targets Rammed 18 | . 13 5 Kicked . | . . . Crushed 1 | . . 1 Highest Temperature 294 | . 294 245 Average Temperature 100 | . 94 118 Received Heat Transfer 264 | . 195 69 Effects 2 | . 2 . Interference 2 | . 2 . Siege Activations . | . . . Robots Corrupted . | . . . Combat Hostiles . | . . . Parts Fried . | . . . Impact Corruptions . | . . . Robots Melted . | . . . Combat Hostiles . | . . . Parts Melted . | . . . Heat Transferred 555 | . 481 74 Parts Sabotaged . | . . . Parts Stolen . | . . . Parts Stripped . | . . . Power Chain Reactions . | . . . Alert | -11 -10 -10 ------- Run | Yrd Mat Min Peak Influence 259 | 20 259 104 Initial 37 | . 13 37 Average 93 | 7 119 57 Maximum Alert Level 1 | . 1 . Low Security (%) 98 | 100 97 100 Level 1 1 | . 2 . Level 2 . | . . . Level 3 . | . . . Level 4 . | . . . Level 5 . | . . . High Security . | . . . Max Security . | . . . Squads Dispatched 4 | . 4 . Investigation 1 | . 1 . Extermination . | . . . Reinforcement 3 | . 3 . Assault . | . . . Garrison . | . . . Intercept . | . . . Searches Triggered . | . . . Construction Impeded . | . . . Haulers Reinforced . | . . . Active Scanning Responses . | . . . Cargo Convoy Interrupts . | . . . Stealth | -11 -10 -10 --------- Run | Yrd Mat Min Distress Signals 5 | . 5 . Communications Jammed . | . . . Distress Signals . | . . . Times Spotted 63 | . 35 28 Peak Tracking Total 13 | . 6 13 Tactical Retreats 4 | . 4 . Traps | -11 -10 -10 ------- Run | Yrd Mat Min Traps Triggered 2 | . 2 . Indirectly . | . . . Trap Hack Attempts . | . . . Triggered . | . . . Disarmed . | . . . Reprogrammed . | . . . Reused . | . . . Traps Extracted . | . . . Installed . | . . . Triggered . | . . . Machines | -11 -10 -10 ---------- Run | Yrd Mat Min Machines Disabled . | . . . Max in Single Turn . | . . . Machines Repaired . | . . . Machines Dismantled . | . . . Machines Sabotaged . | . . . Overloaded Fab Kills . | . . . Hacking | -11 -10 -10 --------- Run | Yrd Mat Min Machines Accessed 6 | . 6 . Terminals 5 | . 5 . Fabricators . | . . . Repair Stations . | . . . Recycling Units 1 | . 1 . Scanalyzers . | . . . Garrison Access . | . . . Total Hacks 18 | . 18 . Successful 8 | . 8 . Failed 10 | . 10 . Catastrophic . | . . . Database Lockouts . | . . . Manual 11 | . 11 . Terminals 17 | . 17 . Fabricators . | . . . Repair Stations . | . . . Recycling Units 1 | . 1 . Scanalyzers . | . . . Garrison Access . | . . . Terminal Hacks 3 | . 3 . Robot Analysis 1 | . 1 . Locate Traps 2 | . 2 . Fabricator Hacks . | . . . Repair Station Hacks . | . . . Recycling Unit Hacks . | . . . Scanalyzer . | . . . Garrison Access Hacks . | . . . Unauthorized Hacks 5 | . 5 . Terminals 4 | . 4 . Skim 4 | . 4 . Fabricators . | . . . Repair Stations . | . . . Recycling Units 1 | . 1 . Tunnel 1 | . 1 . Scanalyzers . | . . . Garrison Access . | . . . Data Cores Recovered . | . . . Used . | . . . Hacking Detections 5 | . 5 . Full Trace Events 1 | . 1 . Feedback Events . | . . . Feedback Blocked . | . . . Robot Schematics Acquired . | . . . Robots Built . | . . . Authchips . | . . . Time . | . . . Total Robot Build Rating . | . . . Part Schematics Acquired . | . . . Parts Built . | . . . Authchips . | . . . Time . | . . . Total Part Build Rating . | . . . Parts Repaired . | . . . Time . | . . . Parts Recycled . | . . . Recycled Matter . | . . . Retrieved Matter . | . . . Retrieved Components . | . . . Parts Scanalyzed . | . . . Part Schematics Acquired . | . . . Parts Damaged . | . . . Bothacking | -11 -10 -10 ------------ Run | Yrd Mat Min Used RIF Installer . | . . . Robots Hacked . | . . . Non-combat . | . . . Combat . | . . . Robot Hacks Applied . | . . . Relay Couplers Released . | . . . Fabnet Peak Effective % . | . . . Robots Rewired . | . . . Allies Hacked . | . . . Hacks Repelled . | . . . Allies | -11 -10 -10 -------- Run | Yrd Mat Min Total Allies 5 | . . 5 Largest Group 4 | . . 4 Highest-Rated Group 55 | . . 55 Highest-Rated Ally 31 | . . 31 Total Orders . | . . . Ally Attacks 18 | . . 18 Total Damage 149 | . . 149 Kills 3 | . . 3 Allies Corrupted . | . . . Allies Melted . | . . . Intel | -11 -10 -10 ------- Run | Yrd Mat Min Robot Analysis Total 1 | . 1 . Derelict Logs Recovered 2 | . . 2 Drone Launches . | . . . Drone Recoveries . | . . . Exploration | -11 -10 -10 ------------- Run | Yrd Mat Min Turns Passed 3052 | 149 1875 1028 Spaces Moved 1242 | 81 737 424 Core 6 | 6 . . Treads 967 | . 636 331 Legs 176 | 75 101 . Wheels 93 | . . 93 Hover . | . . . Flight . | . . . Fastest Speed 50 | 50 120 155 Average Speed 208 | 122 209 221 Slowest Speed 320 | 190 240 320 Overloaded Moves . | . . . Propulsion Burnouts . | . . . Robots Hopped . | . . . Cave-ins Triggered . | . . . Exploration Rate (%) 61 | 5 97 81 Regions Visited 2 Branch Regions 1 Pre-discovered Areas 4 | . 1 3 Known Exits Taken . | . . . Unknown Exits Taken 2 | 1 1 . Scrap Searched 1 | . . 1 Spaces Dug 27 | . 4 23 Terrain Destroyed 45 | . 7 38 Melee . | . . . Projectile 2 | . 2 . AOE 43 | . 5 38 Terrain Rammed . | . . . Walls Destroyed . | . . . Machines Disabled . | . . . Actions | -11 -10 -10 --------- Run | Yrd Mat Min Total 1519 | 116 925 478 Wait 71 | 15 49 7 Move 1240 | 80 736 424 Hop . | . . . Pick Up 32 | 7 20 5 Fast Attach 11 | 7 3 1 Attach 4 | . . 4 Detach . | . . . Swap 23 | . 14 9 Drop 18 | . 13 5 Fire 102 | 7 77 18 Melee . | . . . Ram 1 | . . 1 Kick . | . . . Crush 17 | . 13 4 Escape Stasis . | . . . Rewire . | . . . Trap . | . . . Miscellaneous . | . . . Route ------- -11/Scrapyard -10/Materials (discovered 4 exits: [*Mat x3] / [*Min]) -10/Mines (discovered 1 exit: [*Mat]) History --------- Turn | Location | Event 3 | -11/Scrapyard | Discovered new exit (range 16) 150 | -11/Scrapyard | Entered Materials 303 | -10/Materials | Build established: Mutant 378 | -10/Materials | Discovered new exit (range 15) 471 | -10/Materials | Discovered new exit (range 16) 1127 | -10/Materials | Discovered new exit (range 16) 1440 | -10/Materials | Discovered new exit (range 10) 2025 | -10/Materials | Entered Mines 2168 | -10/Mines | Core integrity fell below 50% 2348 | -10/Mines | A weapon hastily lodged in a ceiling crevice suddenly fell to the ground 2479 | -10/Mines | Discovered new exit (range 10) 2574 | -10/Mines | Deemed a non-threat by the Exiles lab entrance 2596 | -10/Mines | Assisted by bots powering up and referring to "LRC-V3" 3007 | -10/Mines | Assembled infested the area 3044 | -10/Mines | Core integrity fell below 20% 3047 | -10/Mines | Destroyed 10 combat bots 3051 | -10/Mines | Lost 3 allies 3053 | -10/Mines | Destroyed by D-53 Grenadier with Mini Grenade Launcher Last Messages --------------- 03037_ as-08297 sneak attacks. 03037_ T-07 Excavator system corrupted by crushing effect. 03037_ as-56965 destroyed. 03037_ as-39149 destroyed. 03038_ T-07 Excavator system terminally corrupted. 03039_ as-20858 destroyed. 03039_ as-50324 destroyed. 03039_ Lgt. Treads destroyed. 03039_ Lgt. Armor Plating destroyed. 03043_ Beam Cannon destroyed. 03043_ as-08297 destroyed. 03044_ The unstable cave ceiling collapses. 03047_ U-05 Engineer builds a Wall. 03048_ The unstable cave ceiling collapses. 03049_ Imp. Ion Engine destroyed. 03051_ U-05 Engineer builds a Wall. 03051_ D-53 Grenadier suffers critical hit (Destroy). 03052_ The unstable cave ceiling collapses. 03052_ U-05 Engineer lays Concrete. 03053_ Lgt. Treads destroyed. Map ----- +----------------------------------------------------+ | ??????###### ##?# ## ####?# ######### | | ????????# #?# ! ### #???????# | | ???# ## #### ###### % [ ## #???????## | | ?????# #?## ##??## ## #????????### | | ?????### ##?# #??# * ## #??????????? | | ???????##???# #??# ### #??????????? | | ????????????# ##?## =##?# #??????????? | | ????????????## #### %#### #????##????? | | ?????????????## ## < =%%=### #### #####? | | ?????????????##### =[%! #? | | ????????????## #### ###! #? | | ??????????### #?#############%##### #? | | ?????????## #????????###### #??????? ##? | | ?????????# ##????### ## #??????????? | | ?????????# ###### %## #??????????? | | ?????????## = *=%*|[#??????????? | | ??????????## ####### ###?????????## | | ???????????# ####### # ###??????????## | | ???????????# #??#????????????# | | ???????????## ######### #??????????????# | | ????????????############# #??????????????# | | ????????????????## ## #??????????????# | | ???????????????## # #??????????????## | | ?????????????### # #???????????????## | | ????????????## #u##???????????????## | | ????????????# # @ % #????????????????? | | ????????????# dd #????????????????? | | ???????????# ##????????????????? | | ???????? = ##?????????????????? | | ???????# *%= ##??????????????????? | | ???????##% ! ##???????????????????? | | ????????## # ####????????????????????? | | ?????????### ###??????????????????????? | | ???????????# #????????????????????????? | | ???????????## #?????????????????????????? | | ????????????# #??????????????????????????? | | ????????????#a ##???????????????????????????? | | ????????????# ?????????????????????????????? | | ????????????# ??????????????????????????????? | | ????????????# ??????????????????????????????? | | ????????????????????????????????????????????? | | ????????????????????????????????????????????? | | ????????????????????????????????# ????????? | | ????????????????????????????????# ????? | | ???????????????????????????????# # | | ???????????????????????????????# | | ????????????????????????????????# | | ????????????????????????????????# #### | | ????????????????????????????????????????## | | ?????????????????????????????????????????## | +----------------------------------------------------+ Best States ------------- Heat Dissipation 25 Energy Generation 12 Energy Capacity 265 Matter Stores 300 Matter Capacity 300 Sight Range 16 Terrain Scan Density 10 Armor Coverage 150 Evasion (%) 55 Recoil Reduction 2 Item Schematics ----------------- None Robot Schematics ------------------ None Fabricated ------------ Nothing Alien Tech Used ----------------- None Achievements -------------- None Challenges ------------ None Game ------ Seed ControlTripodBattery Manual? 0 Play Time 00:18:24 Cumulative 173.5 hours Start 2024.08.14 @ 17:45:41 End 2024.08.14 @ 18:02:39 Sessions 1 Manual Loads 0 Difficulty Rogue Special Mode None Game No. 90 Rogue 90 Adventurer 0 Explorer 0 Win Type - Total 5 Types 4/0/1/0/0/0/0/0/0 Lore% 68 Gallery% 66 Achievement% 59 Wizard Run 0 Options --------- Layout 0 ASCII 0 Keyboard 0 Movement Numpad Keybinds 0 Fullscreen 2 Font 18/SmallcapsGlow Map View 76x50 Zoom Use 0% Tactical HUD 1 Map Filters NONE Filters NONE Steam 1 RUN: 2772c983-b076-4f67-bccb-f788267b2464